bitfinex-derivatives/quotes_BNBF0:USTF0_20250309
["timestamp","ask_amount","ask_price","bid_price","bid_amount"]
[1741500279760,0.34125034,586.08,585.02,7.86]
[1741500280569,0.29730503,586.07,585.02,7.86]
[1741500280866,0.34126198,586.06,585.02,7.86]
[1741500282663,0.297319,586.05,585.02,7.86]
[1741500283067,0.34127363,586.04,585.02,7.86]
[1741500285066,0.31400814,586.03,585.02,7.86]
[1741500285268,0.34128528,586.02,585.02,7.86]
[1741500285467,0.31400814,586.01,585.02,7.86]
[1741500285671,0.34129692,586.0,585.02,7.86]
[1741500285868,0.31400814,585.99,585.02,7.86]
[1741500286170,0.65531848,585.98,585.02,7.86]
[1741500286371,0.31400991,585.97,585.02,7.86]
[1741500289570,0.29732789,585.96,585.02,7.86]
[1741500289771,0.31400991,585.95,585.02,7.86]
[1741500291567,0.31400991,585.94,585.02,7.86]
[1741500291765,0.31400991,585.97,585.02,7.86]
[1741500291967,0.31400991,585.96,585.02,7.86]
[1741500292170,0.31400991,585.95,585.02,7.86]
[1741500292466,0.31400991,585.94,585.02,7.86]
[1741500294475,0.31400991,585.97,585.02,7.86]
[1741500294675,0.29732154,585.93,585.02,7.86]
[1741500294876,0.31400991,585.92,585.02,7.86]
[1741500295375,0.3139792,585.91,585.02,7.86]
[1741500295576,0.3139792,585.92,585.02,7.86]
[1741500295774,0.3139792,585.92,585.02,7.84948414]
[1741500295972,0.3139792,585.92,585.02,6.899]
[1741500297478,0.3139792,585.97,585.02,6.899]
[1741500297678,0.29732408,585.91,585.02,6.899]
[1741500297883,0.3139792,585.9,585.02,6.899]
[1741500298876,0.29732408,585.91,585.02,6.899]
[1741500299078,0.31397639,585.9,585.02,6.899]
[1741500300480,0.29732662,585.89,585.02,6.899]
[1741500300880,0.31398018,585.88,585.02,6.899]
[1741500303488,0.31398018,585.97,585.02,6.899]
[1741500304592,0.61130381,585.96,585.02,6.899]
[1741500304989,0.31398608,585.95,585.02,6.899]
[1741500306491,0.31398608,585.97,585.02,6.899]
[1741500306691,0.31398608,585.96,585.02,6.899]
[1741500306993,1.26952077,585.87,585.02,6.899]
[1741500307287,0.31398608,585.86,585.02,6.899]
[1741500307493,0.61131778,585.86,585.02,6.899]
[1741500307694,0.31398608,585.85,585.02,6.899]
[1741500310493,0.29733297,585.84,585.02,6.899]
[1741500310796,1.26952077,585.82,585.02,6.899]
[1741500310997,0.31398608,585.81,585.02,6.899]
[1741500312704,1.26952077,585.82,585.02,6.899]
[1741500313405,1.26952077,585.76,585.02,6.899]
[1741500315004,0.29732027,585.81,585.02,6.899]
[1741500315706,0.29732027,585.81,585.02,8.059]
[1741500316007,0.31397861,585.8,585.02,8.059]
[1741500318506,0.31397861,585.92,585.02,8.059]
[1741500318806,0.31397861,585.91,585.02,8.059]
[1741500319307,0.31397861,585.9,585.02,8.059]
[1741500319507,0.29733424,585.9,585.02,8.059]
[1741500319704,1.26952077,585.79,585.02,8.059]
[1741500319904,0.31397861,585.78,585.02,8.059]
[1741500320103,1.26952077,585.79,585.02,8.059]
[1741500320300,0.31399031,585.78,585.02,8.059]
[1741500322404,0.29735203,585.77,585.02,8.059]
[1741500322601,0.31399031,585.76,585.02,8.059]
[1741500323204,0.31398983,585.75,585.02,8.059]
[1741500323415,0.29735203,585.77,585.02,8.059]
[1741500323416,0.31398983,585.74,585.02,8.059]
[1741500323610,0.31398983,585.73,585.02,8.059]
[1741500323809,0.29735203,585.77,585.02,8.059]
[1741500324007,0.31398983,585.76,585.02,8.059]
[1741500328519,0.29736473,585.75,585.02,8.059]
[1741500328720,0.31398983,585.74,585.02,8.059]
[1741500329421,0.31399463,585.73,585.02,8.059]
[1741500329921,0.31399463,585.72,585.02,8.059]
[1741500330121,0.31399463,585.74,585.02,8.059]
[1741500330323,0.31399463,585.71,585.02,8.059]
[1741500330525,0.31399463,585.7,585.02,8.059]
[1741500330723,0.31399463,585.76,585.02,8.059]
[1741500330920,1.26952077,585.77,585.02,8.059]
[1741500331126,0.31399216,585.76,585.02,8.059]
[1741500331523,0.61134673,585.76,585.02,8.059]
[1741500331724,0.31399216,585.75,585.02,8.059]
[1741500333520,1.26952077,585.8,585.02,8.059]
[1741500333726,0.31398423,585.79,585.02,8.059]
[1741500334628,0.29735076,585.78,585.02,8.059]
[1741500334825,0.31398423,585.77,585.02,8.059]
[1741500335020,0.29735076,585.78,585.02,8.059]
[1741500335225,0.31398441,585.77,585.02,8.059]
[1741500336627,1.26952077,585.82,585.02,8.059]
[1741500337521,0.61127269,585.81,585.02,8.059]
[1741500337727,0.31395242,585.8,585.02,8.059]
[1741500339427,0.31395242,585.85,585.02,8.059]
[1741500339623,0.29731519,585.79,585.02,8.059]
[1741500339831,0.31395242,585.78,585.02,8.059]
[1741500340425,0.31395258,585.77,585.02,8.059]
[1741500340630,0.31395258,585.76,585.02,8.059]
[1741500340830,0.31395258,585.78,585.02,8.059]
[1741500341028,0.29731519,585.79,585.02,8.059]
[1741500341224,0.31395128,585.78,585.02,8.059]
[1741500342529,0.61127536,585.77,585.02,8.059]
[1741500342724,0.29732408,585.77,585.02,8.059]
[1741500343329,0.31395064,585.76,585.02,8.059]
[1741500345131,1.26952077,585.88,585.02,8.059]
[1741500345325,0.31394502,585.87,585.02,8.059]
[1741500345530,0.297319,585.75,585.02,8.059]
[1741500345730,0.31394502,585.87,585.02,8.059]
[1741500345932,0.31393599,585.88,585.02,8.059]
[1741500346129,0.31393599,585.87,585.02,8.059]
[1741500346332,0.31393599,585.88,585.02,8.059]
[1741500346532,0.31393599,585.87,585.02,8.059]
[1741500346731,0.31393599,585.88,585.02,8.059]
[1741500346926,0.61123467,585.87,585.02,8.059]
[1741500347232,0.31393599,585.86,585.02,8.059]
[1741500348533,0.29730122,585.85,585.02,8.059]
[1741500349738,0.3139337,585.84,585.02,8.059]
[1741500351535,0.3139337,585.97,585.02,8.059]
[1741500351729,1.26952077,586.03,585.02,8.059]
[1741500351933,0.31393214,585.97,585.02,8.059]
[1741500352530,0.29728725,585.96,585.02,8.059]
[1741500352733,0.31393214,585.95,585.02,8.059]
[1741500353136,0.31392413,585.94,585.02,8.059]
[1741500353335,0.31392413,585.95,585.02,8.059]
[1741500353528,0.31392413,585.94,585.02,8.059]
[1741500353731,0.31392413,585.95,585.02,8.059]
[1741500353935,0.31392413,585.93,585.02,8.059]
[1741500354137,0.31392413,585.92,585.02,8.059]
[1741500354337,0.31392413,585.95,585.02,8.059]
[1741500354538,0.31392413,585.94,585.02,8.059]
[1741500354739,0.31392413,585.95,585.02,8.059]
[1741500354942,0.31392413,585.94,585.02,8.059]
[1741500355241,0.31392413,585.93,585.02,8.059]
[1741500355440,0.31392413,585.95,585.02,8.059]
[1741500357546,0.29729995,585.94,585.02,8.059]
[1741500357943,0.31392413,585.93,585.02,8.059]
[1741500360544,0.29728979,585.92,585.02,8.059]
[1741500360738,0.31392413,585.91,585.02,8.059]
[1741500363741,0.31392413,585.9,585.02,8.059]
[1741500364043,0.31392413,585.89,585.02,8.059]
[1741500364347,0.31392413,585.97,585.02,8.059]
[1741500364646,1.26952077,586.01,585.02,8.059]
[1741500364647,0.29729233,585.88,585.02,8.059]
[1741500364847,0.31392413,585.87,585.02,8.059]
[1741500365148,0.31392413,585.86,585.02,8.059]
[1741500365447,0.31392413,585.85,585.02,8.059]
[1741500365647,0.31392413,585.84,585.02,8.059]
[1741500369048,0.31400792,585.83,585.02,8.059]
[1741500369248,0.31400792,585.84,585.02,8.059]
[1741500369446,1.26952077,585.8,585.02,8.059]
[1741500369648,0.31400792,585.79,585.02,8.059]
[1741500370553,0.29735965,585.78,585.02,8.059]
[1741500370751,0.31400792,585.77,585.02,8.059]
[1741500372550,0.31400792,585.76,585.02,8.059]
[1741500372751,1.26952077,585.84,585.02,8.059]
[1741500372951,0.31401242,585.83,585.02,8.059]
[1741500373451,0.29735584,585.82,585.02,8.059]
[1741500373653,0.31401242,585.81,585.02,8.059]
[1741500374655,0.3140162,585.8,585.02,8.059]
[1741500375050,0.3140162,585.79,585.02,8.059]
[1741500375255,0.3140162,585.81,585.02,8.059]
[1741500375450,0.3140162,585.78,585.02,8.059]
[1741500375649,0.3140162,585.8,585.02,8.059]
[1741500375850,0.3140162,585.79,585.02,8.059]
[1741500376052,0.3140162,585.81,585.02,8.059]
[1741500378554,0.3140162,585.9,585.02,8.059]
[1741500378756,0.6553772,585.89,585.02,8.059]
[1741500378956,0.3140162,585.88,585.02,8.059]
[1741500379557,0.29736219,585.87,585.02,8.059]
[1741500379859,0.3140162,585.86,585.02,8.059]
[1741500381456,0.34138431,585.85,585.02,8.059]
[1741500381655,0.3140162,585.84,585.02,8.059]
[1741500381853,0.34139596,585.83,585.02,8.059]
[1741500382059,0.3140162,585.82,585.02,8.059]
[1741500382559,0.29738506,585.81,585.02,8.059]
[1741500382766,0.65542965,585.8,585.02,8.059]
[1741500382964,0.3140162,585.79,585.02,8.059]
[1741500383857,0.3414251,585.78,585.02,8.059]
[1741500384059,0.3140162,585.77,585.02,8.059]
[1741500384561,0.29740412,585.76,585.02,8.059]
[1741500384859,0.3140162,585.75,585.02,8.059]
[1741500385065,0.34144842,585.74,585.02,8.059]
[1741500385268,0.3140162,585.73,585.02,8.059]
[1741500385462,0.34146008,585.72,585.02,8.059]
[1741500385663,0.3140162,585.71,585.02,8.059]
[1741500386166,0.34147174,585.7,585.02,8.059]
[1741500386362,0.3140162,585.69,585.02,8.059]
[1741500386562,0.3414834,585.68,585.02,8.059]
[1741500386766,0.3140162,585.67,585.02,8.059]
[1741500390467,0.29741937,585.66,585.02,8.059]
[1741500390667,0.31411524,585.65,585.02,8.059]
[1741500391869,0.29741937,585.66,585.02,8.059]
[1741500392069,0.31410065,585.65,585.02,8.059]
[1741500393073,0.31410009,585.64,585.02,8.059]
[1741500393368,0.31410009,585.63,585.02,8.059]
[1741500393573,0.29741937,585.63,585.02,8.059]
[1741500393773,0.31410009,585.62,585.02,8.059]
[1741500396471,0.3414834,585.68,585.02,8.059]
[1741500396472,0.29742319,585.61,585.02,8.059]
[1741500396668,0.31410292,585.6,585.02,8.059]
[1741500399575,0.29742319,585.61,585.02,8.059]
[1741500402376,0.3414834,585.68,585.02,8.059]
[1741500403485,0.29739269,585.67,585.02,8.059]
[1741500405282,0.3414834,585.68,585.02,8.059]
[1741500405485,0.29741683,585.66,585.02,8.059]
[1741500408285,0.3414834,585.68,585.02,8.059]
[1741500408687,0.29741683,585.65,585.02,8.059]
[1741500409387,0.31409654,585.64,585.02,8.059]
[1741500411487,0.29742065,585.63,585.02,8.059]
[1741500411791,0.31409654,585.62,585.02,8.059]
[1741500414490,0.31409654,585.67,585.02,8.059]
[1741500414685,0.29742319,585.61,585.02,8.059]
[1741500414890,0.31409654,585.6,585.02,8.059]
[1741500417503,0.31409654,585.66,585.02,8.059]
[1741500417810,0.29742573,585.59,585.02,8.059]
[1741500418001,0.31409654,585.58,585.02,8.059]
[1741500418200,0.31409654,585.66,585.02,8.059]
[1741500418501,1.26952077,585.64,585.02,8.059]
[1741500418696,0.2974181,585.57,585.02,8.059]
[1741500418899,0.31409654,585.56,585.02,8.059]
[1741500419101,0.61151846,585.63,585.02,8.059]
[1741500419300,0.31409654,585.62,585.02,8.059]
[1741500420505,1.26952077,585.64,585.02,8.059]
[1741500420506,0.29742319,585.61,585.02,8.059]
[1741500420907,0.31409654,585.6,585.02,8.059]
[1741500422103,0.29742319,585.61,585.02,8.059]
[1741500422301,0.3141083,585.6,585.02,8.059]
[1741500422704,1.26952077,585.56,585.02,8.059]
[1741500423008,0.3141083,585.55,585.02,8.059]
[1741500425603,1.58362907,585.55,585.02,8.059]
[1741500425802,1.26952077,585.55,585.02,8.059]
[1741500426210,0.31414666,585.54,585.02,8.059]
[1741500428410,0.29742319,585.61,585.02,8.059]
[1741500428608,0.65573905,585.6,585.02,8.059]
[1741500428806,0.314209,585.59,585.02,8.059]
[1741500429509,0.61168349,585.58,585.02,8.059]
[1741500429713,0.31420818,585.57,585.02,8.059]
[1741500430813,1.26952077,585.48,585.02,8.059]
[1741500431010,0.31420818,585.47,585.02,3.773]
[1741500431211,0.31420818,585.47,584.15,0.29747912]
[1741500431414,0.31420818,585.47,584.16,0.34237195]
[1741500432614,0.29760378,585.46,584.16,0.34237195]
[1741500432915,0.31420818,585.45,584.16,0.34237195]
[1741500434314,0.31420818,585.45,584.16,6.85137195]
[1741500434514,0.31420818,585.45,584.16,7.50537195]
[1741500435716,0.31420818,585.59,584.16,7.50537195]
[1741500435917,0.34154171,585.58,584.16,7.50537195]
[1741500436116,0.31420818,585.57,584.16,7.50537195]
[1741500436513,0.29758978,585.56,584.16,7.50537195]
[1741500436714,0.31420818,585.55,584.16,7.50537195]
[1741500438717,0.29758978,585.56,584.16,7.50537195]
[1741500438915,0.31420355,585.55,584.16,7.50537195]
[1741500439416,0.29758978,585.56,584.16,7.50537195]
[1741500441218,0.34154171,585.58,584.16,7.50537195]
[1741500441613,0.29758723,585.55,584.16,7.50537195]
[1741500444320,0.34154171,585.58,584.16,7.50537195]
[1741500445521,0.29752363,585.57,584.16,7.50537195]
[1741500447219,0.34154171,585.58,584.16,7.50537195]
[1741500447624,0.29758723,585.56,584.16,7.50537195]
[1741500450324,0.34154171,585.58,584.16,7.50537195]
[1741500450624,0.29758723,585.55,584.16,7.50537195]
[1741500453024,0.3142046,585.54,584.16,7.50537195]
[1741500453625,0.29759105,585.53,584.16,7.50537195]
[1741500454021,0.3142046,585.52,584.16,7.50537195]
[1741500456621,0.2975936,585.51,584.16,7.50537195]
[1741500457026,0.3142046,585.5,584.16,7.50537195]
[1741500459029,0.2975936,585.51,584.16,7.50537195]
[1741500459230,0.34159422,585.49,584.16,7.50537195]
[1741500460631,0.31427908,585.48,584.16,7.50537195]
[1741500460832,0.34159422,585.49,584.16,7.50537195]
[1741500460833,0.3142794,585.47,584.16,7.50537195]
[1741500461029,0.2975936,585.51,584.16,7.50537195]
[1741500461030,0.34161172,585.46,584.16,7.50537195]
[1741500461230,0.3142794,585.45,584.16,7.50537195]
[1741500462031,0.34162339,585.44,584.16,7.50537195]
[1741500462231,0.3142794,585.43,584.16,7.50537195]
[1741500462532,0.34163506,585.42,584.16,7.50537195]
[1741500462725,0.3142794,585.41,584.16,7.50537195]
[1741500463431,0.29766105,585.4,584.16,7.50537195]
[1741500463732,0.3142794,585.39,584.16,7.50537195]
[1741500465630,0.6559378,585.38,584.16,7.50537195]
[1741500465826,0.3142794,585.37,584.16,7.50537195]
[1741500466431,0.29766614,585.36,584.16,7.50537195]
[1741500466631,0.3142794,585.35,584.16,7.50537195]
[1741500468633,0.3142794,585.37,584.16,7.50537195]
[1741500468833,0.3142794,585.36,584.16,7.50537195]
[1741500469032,0.3142794,585.37,584.16,7.50537195]
[1741500469235,0.3142794,585.36,584.16,7.50537195]
[1741500469429,0.61194554,585.36,584.16,7.50537195]
[1741500469627,0.3142794,585.35,584.16,7.50537195]
[1741500471540,0.3142794,585.37,584.16,7.50537195]
[1741500471734,0.3142794,585.36,584.16,7.50537195]
[1741500471934,0.3142794,585.37,584.16,7.50537195]
[1741500472235,0.3142794,585.36,584.16,7.50537195]
[1741500472434,0.2976636,585.36,584.16,7.50537195]
[1741500472635,0.3142794,585.35,584.16,7.50537195]
[1741500474637,0.3142794,585.34,584.16,7.50537195]
[1741500474831,0.3142794,585.37,584.16,7.50537195]
[1741500475028,0.3142794,585.36,584.16,7.50537195]
[1741500475233,0.3142794,585.37,584.16,7.50537195]
[1741500475438,0.2976636,585.35,584.16,7.50537195]
[1741500475635,0.3142794,585.34,584.16,7.50537195]
[1741500477741,0.3142794,585.33,584.16,7.50537195]
[1741500477937,0.3142794,585.37,584.16,7.50537195]
[1741500478241,0.3142794,585.36,584.16,7.50537195]
[1741500478441,0.2976636,585.36,584.16,7.50537195]
[1741500478640,0.3142794,585.35,584.16,7.50537195]
[1741500480537,0.3142794,585.37,584.16,7.50537195]
[1741500480743,0.2976636,585.34,584.16,7.50537195]
[1741500481146,0.3142794,585.33,584.16,7.50537195]
[1741500482237,0.2976636,585.34,584.16,7.50537195]
[1741500482436,0.31430199,585.33,584.16,7.50537195]
[1741500483543,0.29766869,585.32,584.16,7.50537195]
[1741500483939,0.31430199,585.31,584.16,7.50537195]
[1741500484140,0.31430324,585.3,584.16,7.50537195]
[1741500484345,0.31430324,585.31,584.16,7.50537195]
[1741500484541,0.31430324,585.3,584.16,7.50537195]
[1741500484741,0.31430324,585.31,584.16,7.50537195]
[1741500485047,0.31430199,585.3,584.16,7.50537195]
[1741500485241,0.31430199,585.31,584.16,7.50537195]
[1741500485442,0.31430199,585.29,584.16,7.50537195]
[1741500485645,0.31430199,585.28,584.16,7.50537195]
[1741500485846,0.31430199,585.31,584.16,7.50537195]
[1741500486045,0.31430168,585.3,584.16,7.50537195]
[1741500486241,0.31430168,585.31,584.16,7.50537195]
[1741500486747,0.31430168,585.3,584.16,7.50537195]
[1741500486947,0.31430168,585.37,584.16,7.50537195]
[1741500487148,0.31430168,585.36,584.16,7.50537195]
[1741500487349,0.31430168,585.37,584.16,7.50537195]
[1741500487548,0.2976636,585.35,584.16,7.50537195]
[1741500487849,0.31430168,585.34,584.16,7.50537195]
[1741500489651,0.2976636,585.35,584.16,7.50537195]
[1741500489652,0.31430386,585.33,584.16,7.50537195]
[1741500489855,0.31430386,585.34,584.16,7.50537195]
[1741500490051,0.31430386,585.33,584.16,7.50537195]
[1741500490352,0.31430386,585.32,584.16,7.50537195]
[1741500490552,0.31430386,585.31,584.16,7.50537195]
[1741500490848,0.31430386,585.3,584.16,7.50537195]
[1741500491054,0.31430386,585.31,584.16,7.50537195]
[1741500491250,0.31430386,585.3,584.16,7.50537195]
[1741500491452,0.31430386,585.31,584.16,7.50537195]
[1741500491654,0.31430386,585.3,584.16,7.50537195]
[1741500491855,0.31430386,585.31,584.16,7.50537195]
[1741500492058,0.31430386,585.3,584.16,7.50537195]
[1741500492258,0.31430386,585.31,584.16,7.50537195]
[1741500493464,0.29769161,585.3,584.16,7.50537195]
[1741500493665,0.31430386,585.29,584.16,7.50537195]
[1741500495564,0.31430386,585.31,584.16,7.50537195]
[1741500496366,0.65600313,585.31,584.16,7.50537195]
[1741500496568,0.61199547,585.3,584.16,7.50537195]
[1741500496762,0.31430386,585.29,584.16,7.50537195]
[1741500498771,1.26952077,585.22,584.16,7.50537195]
[1741500498966,0.31430386,585.21,584.16,7.50537195]
[1741500499166,0.34175765,585.21,584.16,7.163]
[1741500499371,0.31439425,585.2,584.16,7.163]
[1741500500673,0.31439194,585.19,584.16,7.163]
[1741500500868,0.31439194,585.2,584.16,7.163]
[1741500501068,0.31439194,585.19,584.16,7.163]
[1741500501273,0.31439194,585.2,584.16,7.163]
[1741500501475,0.34175765,585.21,584.16,7.163]
[1741500502176,1.26952077,585.19,584.16,7.163]
[1741500502374,0.34177518,585.18,584.16,7.163]
[1741500504072,0.31440316,585.17,584.16,7.163]
[1741500504277,0.34178686,585.16,584.16,7.163]
[1741500504477,0.31440316,585.15,584.16,7.163]
[1741500504675,0.34179854,585.14,584.16,7.163]
[1741500504978,0.31440316,585.13,584.16,7.163]
[1741500505181,0.34181022,585.12,584.16,7.163]
[1741500505373,0.31440316,585.11,584.16,7.163]
[1741500505575,0.34182191,585.1,584.16,7.163]
[1741500505775,0.31440316,585.09,584.16,7.163]
[1741500505978,0.65623091,585.09,584.16,7.163]
[1741500506274,0.65623675,585.08,584.16,7.163]
[1741500506478,0.65624259,585.07,584.16,7.163]
[1741500506678,0.65624844,585.06,584.16,7.163]
[1741500506879,0.31440316,585.05,584.16,7.163]
[1741500507579,0.29778841,585.04,584.16,7.163]
[1741500510382,0.34184528,585.06,584.16,7.163]
[1741500511587,0.29774127,585.05,584.16,7.163]
[1741500513384,0.34184528,585.06,584.16,7.163]
[1741500514582,0.29773873,585.05,584.16,7.163]
[1741500516388,0.31444336,585.04,584.16,7.163]
[1741500516583,0.31444336,585.03,584.16,7.163]
[1741500516883,0.34184528,585.06,584.16,7.163]
[1741500516884,0.31444336,585.02,584.16,7.163]
[1741500517090,0.31444336,585.03,584.16,7.163]
[1741500519686,0.31444336,585.05,584.16,7.163]
[1741500519886,0.31444336,585.04,584.16,7.163]
[1741500520091,0.31444336,585.05,584.16,7.163]
[1741500520396,0.34185696,585.04,584.16,7.163]
[1741500520592,0.31444336,585.03,584.16,7.163]
[1741500520792,0.34186865,585.02,584.16,7.163]
[1741500520992,0.31444336,585.01,584.16,7.163]
[1741500521192,0.34186865,585.02,584.16,7.163]
[1741500521392,0.3144805,585.01,584.16,7.163]
[1741500524597,0.34186865,585.02,584.16,7.163]
[1741500526499,0.29775274,585.01,584.16,7.163]
[1741500528301,0.34186865,585.02,584.16,7.163]
[1741500528703,0.2977209,585.01,584.16,7.163]
[1741500531405,0.34186865,585.02,584.16,7.163]
[1741500531604,0.29774509,585.0,584.16,7.163]
[1741500534500,0.34186865,585.02,584.16,7.163]
[1741500534707,0.29773236,584.99,584.16,7.163]
[1741500540408,1.26952077,586.16,584.16,7.163]
[1741500540613,0.3412154,586.14,584.16,7.163]
[1741500540815,0.314348,586.13,584.16,7.163]
[1741500541013,0.34123287,586.11,584.16,7.163]
[1741500541216,0.314348,586.1,584.16,7.163]
[1741500541413,0.34125034,586.08,584.16,7.163]
[1741500541620,0.314348,586.07,584.16,7.163]
[1741500541920,0.3412678,586.05,584.16,7.163]
[1741500542119,0.314348,586.04,584.16,7.163]
[1741500542320,0.34128528,586.02,584.16,7.163]
[1741500542513,0.314348,586.01,584.16,7.163]
[1741500542714,0.34130275,585.99,584.16,7.163]
[1741500543014,0.314348,585.98,584.16,7.163]
[1741500543222,0.34132022,585.96,584.16,7.163]
[1741500543420,0.314348,585.95,584.16,7.163]
[1741500543621,0.3413377,585.93,584.16,7.163]
[1741500543820,1.26952077,585.79,584.16,7.163]
[1741500544020,0.34143093,585.77,584.16,7.163]
[1741500544320,0.314348,585.76,584.16,7.163]
[1741500544521,0.34144842,585.74,584.16,7.163]
[1741500544919,0.314348,585.73,584.16,7.163]
[1741500545221,0.34146591,585.71,584.16,7.163]
[1741500545417,0.314348,585.7,584.16,7.163]
[1741500545618,0.3414834,585.68,584.16,7.163]
[1741500545821,0.314348,585.67,584.16,7.163]
[1741500546024,0.34150089,585.65,584.16,7.163]
[1741500546224,0.314348,585.64,584.16,7.163]
[1741500546523,0.34151839,585.62,584.16,7.163]
[1741500546922,0.314348,585.61,584.16,7.163]
[1741500547121,0.34153588,585.59,584.16,7.163]
[1741500547317,0.314348,585.58,584.16,7.163]
[1741500547522,0.34155338,585.56,584.16,7.163]
[1741500547717,0.314348,585.55,584.16,7.163]
[1741500548121,0.34157088,585.53,584.16,7.163]
[1741500548323,0.314348,585.52,584.16,7.163]
[1741500548624,0.34158255,585.51,584.16,7.163]
[1741500548923,0.314348,585.5,584.16,7.163]
[1741500549118,0.34159422,585.49,584.16,7.163]
[1741500549324,0.314348,585.48,584.16,7.163]
[1741500549618,0.34160588,585.47,584.16,7.163]
[1741500549925,0.314348,585.46,584.16,7.163]
[1741500550116,0.34161755,585.45,584.16,7.163]
[1741500550316,0.314348,585.44,584.16,7.163]
[1741500550517,0.34162922,585.43,584.16,7.163]
[1741500550721,0.314348,585.42,584.16,7.163]
[1741500550922,0.65598306,585.42,584.16,7.163]
[1741500551122,0.34163506,585.42,584.16,7.163]
[1741500551323,0.31430244,585.41,584.16,7.163]
[1741500552627,0.29765087,585.4,584.16,7.163]
[1741500552824,0.31430244,585.39,584.16,7.163]
[1741500554228,0.3143012,585.38,584.16,7.163]
[1741500554428,0.3143012,585.39,584.16,7.163]
[1741500554629,0.3143012,585.38,584.16,7.163]
[1741500554824,0.3143012,585.39,584.16,7.163]
[1741500555031,0.3143012,585.38,584.16,7.163]
[1741500555224,0.3143012,585.39,584.16,7.163]
[1741500555425,0.3143012,585.39,584.16,7.50537195]
[1741500555630,0.34163506,585.42,584.16,7.50537195]
[1741500555631,0.29765087,585.37,584.16,7.50537195]
[1741500555827,0.3143012,585.36,584.16,7.50537195]
[1741500556030,0.3142798,585.35,584.16,7.50537195]
[1741500556231,0.3142798,585.36,584.16,7.50537195]
[1741500556432,0.3142798,585.35,584.16,7.50537195]
[1741500556632,0.3142798,585.36,584.16,7.50537195]
[1741500558736,0.3142798,585.35,584.16,7.50537195]
[1741500559035,0.3142798,585.34,584.16,7.50537195]
[1741500559231,0.3142798,585.41,584.16,7.50537195]
[1741500559430,0.65592653,585.4,584.16,7.50537195]
[1741500559634,0.65593237,585.39,584.16,7.50537195]
[1741500559834,0.3142798,585.38,584.16,7.50537195]
[1741500562833,0.29766232,585.37,584.16,7.50537195]
[1741500563038,0.3142798,585.36,584.16,7.50537195]
[1741500563437,0.29766232,585.37,584.16,7.50537195]
[1741500563633,0.31429251,585.36,584.16,7.50537195]
[1741500564637,0.31429251,585.35,584.16,7.50537195]
[1741500564838,0.29766487,585.35,584.16,7.50537195]
[1741500565034,0.31429251,585.34,584.16,7.50537195]
[1741500565236,0.29766487,585.35,584.16,7.50537195]
[1741500565440,0.31428808,585.34,584.16,7.50537195]
[1741500567641,0.29766742,585.33,584.16,7.50537195]
[1741500568044,0.31428808,585.32,584.16,7.50537195]
[1741500571140,1.26952077,585.31,584.16,7.50537195]
[1741500571346,0.31428808,585.3,584.16,7.50537195]
[1741500571645,0.61196059,585.3,584.16,7.50537195]
[1741500571944,0.31428808,585.29,584.16,7.50537195]
[1741500573545,0.31428808,585.35,584.16,7.50537195]
[1741500573738,0.29767378,585.28,584.16,7.50537195]
[1741500573940,0.31428808,585.27,584.16,7.50537195]
[1741500574145,0.31428808,585.35,584.16,7.50537195]
[1741500574440,0.31428808,585.34,584.16,7.50537195]
[1741500574643,0.31428808,585.33,584.16,7.50537195]
[1741500576645,0.31428808,585.36,584.16,7.50537195]
[1741500577645,0.29766487,585.35,584.16,7.50537195]
[1741500578042,0.31428808,585.34,584.16,7.50537195]
[1741500579543,0.31428808,585.36,584.16,7.50537195]
[1741500579745,0.29766742,585.33,584.16,7.50537195]
[1741500580046,0.31428808,585.32,584.16,7.50537195]
[1741500582644,0.61195804,585.31,584.16,7.50537195]
[1741500582845,0.31428808,585.3,584.16,7.50537195]
[1741500583944,0.314294,585.29,584.16,7.50537195]
[1741500584243,0.314294,585.28,584.16,7.50537195]
[1741500584446,1.26952077,585.28,584.16,7.50537195]
[1741500584649,0.314294,585.27,584.16,7.50537195]